Workbook

Sheet Startpagina
B1: =Talen!B3 -> Capaciteitsberekening voor VES patronen
B2: =Talen!C3 -> Calcul de la capacité des cartouches VES

Sheet Waterinhoud installatie (hidden)
A1: =Talen!A7 -> Stap 1: Totale vermogen installatie
A3: =Talen!A5 -> Totaal vermogen installatie | C3: 600 | D3: kW
A5: =Talen!A6 -> Waterinhoud gekend:

Sheet ingave waterinhoud (hidden)
A1: =Talen!A14 -> Stap 2 : Ingave waterinhoud
A3: =Talen!A13 -> Geef de totale waterinhoud | C3: 50 | D3: =Talen!A12 -> Liter

Sheet Berekening waterinhoud (hidden)
A1: =Talen!A15 -> Stap 2 : Berekening waterinhoud
A3: =Talen!A19 -> 2.1 : Waterinhoud installatie berekenen:
A5: =Talen!A20 -> Waterinhoud ketel | D5: 500 | E5: L
A6: =Talen!A21 -> Inhoud buffervaten indien aanwezig | E6: L
A7: =Talen!A22 -> Vermogen kringen vloerverwarming | D7: kW | F7: =Talen!A25 -> Vermogen kringen sierradiatoren | I7: kW
A8: =Talen!A23 -> vermogen kringen paneelradiatoren | D8: kW | F8: =Talen!A26 -> Vermogen kringen convectoren | I8: kW
A10: =Talen!A24 -> Waterinhoud installatie zonder leidingen | D10: =IFERROR(D5+D6+(C7*18.5)+(C8*8.8)+(H7*12)+(H8*5.2),Talen!A27) -> 500 | E10: L | F10: =IF(D10>0,"",Talen!A39) -> 
A16: =Talen!A33 -> Rekentool waterinhoud leidingen
A17: =Talen!A28 -> Waterinhoud leidingen bepalen
A18: DN | B18: =Talen!A29 -> Duim | C18: =Talen!A30 -> l/m | D18: =Talen!A31 -> meter m | E18: =Talen!A32 -> Inhoud L
A19: 15 | B19: 1/2" | C19: 0.2 | E19: =C19*D19 -> 0
A20: 20 | B20: 3/4" | C20: 0.37 | E20: 0
A21: 25 | B21: 1" | C21: 0.58 | E21: 0
A22: 32 | B22: 5/4" | C22: 1.01 | E22: 0
A23: 40 | B23: 6/4" | C23: 1.37 | E23: 0
A24: 50 | B24: 2" | C24: 2.21 | E24: 0
A25: 65 | B25: 2 1/2" | C25: 3.9 | E25: 0
A26: 80 | B26: 3" | C26: 5.3 | E26: 0
A27: 100 | B27: 4" | C27: 9 | E27: 0
A28: 125 | B28: 5" | C28: 13.6 | E28: 0
A29: 150 | B29: 6" | C29: 20 | E29: 0
A30: 200 | B30: 8" | C30: 33.6 | E30: 0
A31: 250 | B31: 10" | C31: 53.2 | E31: 0
A32: 300 | B32: 12" | C32: 71.5 | E32: 0
A33: 350 | B33: 14" | C33: 90.5 | E33: 0
A34: 400 | B34: 16" | C34: 118 | E34: 0
A35: TOTAAL inhoud | E35: =SUM(E19:E34) -> 0
A38: =Talen!A34 -> Waterinhoud leidingen | D38: 100 | E38: L
A40: totaal Volume | D40: =D38+D10 -> 600 | E40: L

Sheet Keuze methode (hidden)
A1: =Talen!A40 -> Stap 3 : kies uw berekingswijze

Sheet Via µScm (hidden)
A1: =Talen!A43 -> Stap 4 : Berekening via geleidbaarheid van het vulwater in µS/cm
A4: =Talen!A44 -> Geleidbaarheid in µS/cm: | D4: 500
A5: =Talen!A45 -> Installatie-inhoud in L | D5: 50
A7: =Talen!A46 -> Benodigde capaciteit | D7: =D4*D5/30 -> 833.3333333
A9: =IF(D4="","",IF('Waterinhoud installatie'!C3>599,Talen!A59,IF(D7<16001,Talen!A58,Talen!A59))) -> Waterbehandeling noodzakelijk

Sheet Volgens Postcode (hidden)
A1: =Talen!A54 -> Stap 4 : Berekening via postnummer installatie-adres
A4: =Talen!A55 -> Postnummer | D4: 2800 | F4: =VLOOKUP(D4,Leveringsgebieden!C2:E311,3,) -> Mechelen
A7: =Talen!A56 -> Geleidbaarheid in µS/cm voor deze postnr:
D8: =VLOOKUP(D4,Leveringsgebieden!C2:D311,2,0) -> 570.27
A10: =Talen!A45 -> Installatie-inhoud in L | D10: 50
A12: =Talen!A46 -> Benodigde capaciteit | D12: =D8*D10/30 -> 950.45
A15: =IF('Waterinhoud installatie'!C3>599,Talen!A59,IF(D12<16001,Talen!A58,Talen!A59)) -> Waterbehandeling noodzakelijk

Sheet Materialen (hidden)
A9: =Talen!A62 -> Stap 5 : Keuze van materiaal
A12: =Talen!A5 -> Totaal vermogen installatie | D12: ='Waterinhoud installatie'!C3 -> 600 | E12: kW
A13: =Talen!A45 -> Installatie-inhoud in L | D13: ='ingave waterinhoud'!C3 -> 50
A14: =Talen!A44 -> Geleidbaarheid in µS/cm: | D14: 480.18
A15: =Talen!A46 -> Benodigde capaciteit | D15: 808303
A19: =Talen!A47 -> Benodigde Materialen:
C20: =Talen!A48 -> Artikelnummer | D20: =Talen!A49 -> Omschrijving | G20: =Talen!A50 -> aantal | H20: =Talen!A51 -> prijs
C22: =Data!A4 -> 7738329421 | D22: =Data!C4 -> NFK2 vulinrichting | G22: 1 | H22: =G22*Data!E4 -> 259
C23: =IF(D15<16001,Data!A2,IF(D15<40001,Data!A2,IF(D15<1000000000,Data!A3))) -> 7738330146 | D23: =VLOOKUP(C23,Data!$A$2:$E$42,2,) -> VES Kit P8000 Profi | G23: 1 | H23: =VLOOKUP(C23,Data!A2:E10,5,) -> 1040.29
C24: =IF(D15<16001,Data!A11,IF(D15<40001,Data!A11,IF(D15<1000000000,Data!A5))) -> 7738330149 | D24: =VLOOKUP(C24,Data!$A$2:$E$42,2,) -> Navulverpakking NF8000 | G24: =IF(IF(C23=Data!A2,ROUNDUP((((ROUNDUP((D15/72000*60)*1.05,0))-2)/2),0),ROUNDUP((ROUNDUP((D15/72000*60)*1.05,0)-14)/7,0))<0,0,IF(C23=Data!A2,ROUNDUP((((ROUNDUP((D15/72000*60)*1.05,0))-2)/2),0),ROUNDUP((ROUNDUP((D15/72000*60)*1.05,0)-14)/7,0))) -> 100 | H24: =G24*(Data!E5) -> 14425

Sheet Materialen (2) (hidden)
A9: =Talen!A62 -> Stap 5 : Keuze van materiaal
A11: =Talen!A5 -> Totaal vermogen installatie | E11: ='Waterinhoud installatie'!C3 -> 600 | F11: kW
A12: =Talen!A45 -> Installatie-inhoud in L | E12: ='ingave waterinhoud'!C3 -> 50 | F12: =F17 -> Liter
A13: =Talen!A44 -> Geleidbaarheid in µS/cm: | E13: 500
A14: =Talen!A46 -> Benodigde capaciteit | E14: 841666.6667
A15: =Talen!A66 -> Debiet pomp bypassunit (th 1800): | E15: 1250 | F15: =Talen!A68 -> Liter / uur
A16: =Talen!A67 -> Tijd nodig om volume te behandelen: | E16: =E12/E15 -> 0.04 | F16: =Talen!A69 -> Uren | G16: =Talen!A74 -> of | H16: =E16/24 -> 0.001666666667 | I16: =Talen!A70 -> Dagen
A17: =Talen!A71 -> Aantal liter hars nodig (theoretisch berekend): | E17: =E14/72000*60 -> 701.3888889 | F17: =Talen!A73 -> Liter
A18: =Talen!A72 -> Aantal liter hars nodig (met 5% reserve,naar boven afgerond): | E18: =CEILING(E17*1.05,1) -> 737 | F18: =F17 -> Liter
A21: =Talen!A47 -> Benodigde Materialen:
C22: =Talen!A48 -> Artikelnummer | D22: =Talen!A49 -> Omschrijving | G22: =Talen!A50 -> aantal | H22: =Talen!A51 -> prijs
C24: =Data!A4 -> 7738329421 | D24: =Data!C4 -> NFK2 vulinrichting | G24: 1 | H24: =G24*Data!E4 -> 259
C25: =IF(E14<16001,Data!A2,IF(E14<40001,Data!A2,IF(E14<1000000000,Data!A3))) -> 7738330146 | D25: =VLOOKUP(C25,Data!$A$2:$E$42,2,) -> VES Kit P8000 Profi | G25: 1 | H25: =VLOOKUP(C25,Data!A2:E10,5,) -> 1040.29
C26: =Data!A10 -> 7739453974 | D26: =VLOOKUP(C26,Data!$A$2:$E$42,2,) -> Hars | G26: =E18 -> 737 | H26: =G26*Data!E10 -> 7591.1
C27: =IF(I27=(ROUNDUP(E18/60,0)-1),Data!A6,Data!A7) -> 7739453971 | D27: =VLOOKUP(C27,Data!$A$2:$E$42,2,) -> Water dienst ASA+1 wissel | G27: 1 | H27: =VLOOKUP(C27,Data!A2:E10,5,) -> 953
C28: =Data!A8 -> 7739453972 | D28: =VLOOKUP(C28,Data!$A$2:$E$42,2,) -> Water controle+harswissel | G28: =IF((ROUNDUP(G26/60,0)-2)<0,0,ROUNDUP(G26/60,0)-2) -> 11 | H28: =G28*(Data!E7) -> 10483
C29: =Data!A9 -> 7739453973 | D29: =VLOOKUP(C29,Data!$A$2:$E$42,2,) -> Water waarborg bypassunit | G29: 1 | H29: =G29*(Data!E8) -> 183

Sheet Talen (hidden)
A1: 1 | B1: 1: Nederlands | 2: Frans
A2: Keuze taal | B2: NL | C2: FR
A3: =IF($A$1=1,B3,C3) -> Capaciteitsberekening voor VES patronen | B3: Capaciteitsberekening voor VES patronen | C3: Calcul de la capacité des cartouches VES
A4: =IF($A$1=1,B4,C4) -> Start | B4: Start | C4: Démarrer
A5: Totaal vermogen installatie | B5: Totaal vermogen installatie | C5: Puissance totale de l'installation
A6: Waterinhoud gekend: | B6: Waterinhoud gekend: | C6: Volume d'eau connu :
A7: Stap 1: Totale vermogen installatie | B7: Stap 1: Totale vermogen installatie | C7: Étape 1 : Puissance totale de l'installation
A8: Ja | B8: Ja | C8: Oui
A9: Nee | B9: Nee | C9: Non
A10: Verder | B10: Verder | C10: Suivant
A11: Terug | B11: Terug | C11: Retour
A12: Liter | B12: Liter | C12: Litres
A13: Geef de totale waterinhoud | B13: Geef de totale waterinhoud | C13: Entrer le volume d'eau total
A14: Stap 2 : Ingave waterinhoud | B14: Stap 2 : Ingave waterinhoud | C14: Étape 2 : Saisie du volume d'eau
A15: Stap 2 : Berekening waterinhoud | B15: Stap 2 : Berekening waterinhoud | C15: Étape 2 : Calcul du volume d'eau
A16: Waterinhoud leidingen gekend | B16: Waterinhoud leidingen gekend | C16: Volume d'eau conduites connu
A17: Bepalen via de rekentool | B17: Bepalen via de rekentool | C17: Déterminer via l'outil de calcul
A18: 20% toeslag nemen op installatie? | B18: 20% toeslag nemen op installatie? | C18: Ajouter 20% de plus à l'installation ?
A19: 2.1 : Waterinhoud installatie berekenen: | B19: 2.1 : Waterinhoud installatie berekenen: | C19: 2.1 : Calcul du volume d'eau de l'installation :
A20: Waterinhoud ketel | B20: Waterinhoud ketel | C20: Volume d'eau de la chaudière
A21: Inhoud buffervaten indien aanwezig | B21: Inhoud buffervaten indien aanwezig | C21: Volume des réservoirs tampons, si présent
A22: Vermogen kringen vloerverwarming | B22: Vermogen kringen vloerverwarming | C22: Puissance des circuits de chauffage au sol
A23: vermogen kringen paneelradiatoren | B23: vermogen kringen paneelradiatoren | C23: Puissance des circuits des radiateurs à panneaux
A24: Waterinhoud installatie zonder leidingen | B24: Waterinhoud installatie zonder leidingen | C24: Volume d'eau de l'installation, hors conduites
A25: Vermogen kringen sierradiatoren | B25: Vermogen kringen sierradiatoren | C25: Puissance des circuits de radiateurs décoratifs
A26: Vermogen kringen convectoren | B26: Vermogen kringen convectoren | C26: Puissance des circuits de convecteurs
A27: Foute invoer | B27: Foute invoer | C27: Donnée incorrecte
A28: Waterinhoud leidingen bepalen | B28: Waterinhoud leidingen bepalen | C28: Déterminer le volume d'eau des conduites
A29: Duim | B29: Duim | C29: Pouce(s)
A30: l/m | B30: l/m | C30: l/m
A31: meter m | B31: meter m | C31: Mètre m
A32: Inhoud L | B32: Inhoud L | C32: Volume L
A33: Rekentool waterinhoud leidingen | B33: Rekentool waterinhoud leidingen | C33: Outil de calcul du volume d'eau des conduites
A34: Waterinhoud leidingen | B34: Waterinhoud leidingen | C34: Volume d'eau des conduites
A35: Kies één van de drie bovenstaande methodes om leidinginhoud te bepalen | B35: Kies één van de drie bovenstaande methodes om leidinginhoud te bepalen | C35: Sélectionner une des trois méthodes ci-dessus pour déterminer le volume des conduites
A36: Nederlands | B36: Nederlands | C36: Nederlands
A37: Français | B37: Français | C37: Français
A38: 2.2 : Waterinhoud leidingen berekenen: | B38: 2.2 : Waterinhoud leidingen berekenen: | C38: 2.2 : Calcul du volume d'eau des conduites
A39: Gelieve minstens 1 waarde in te geven | B39: Gelieve minstens 1 waarde in te geven | C39: Veuillez entrer au moins 1 valeur
A40: Stap 3 : kies uw berekingswijze | B40: Stap 3 : kies uw berekingswijze | C40: Étape 3 : Choisir votre méthode de calcul
A41: Berekenen via schatting op basis van postnummer | B41: Berekenen via schatting op basis van postnummer | C41: Calcul via une estimation basée sur le code postal
A42: Berekenen via gekende geleidbaarheid van het vulwater in µS/cm | B42: Berekenen via gekende geleidbaarheid van het vulwater in µS/cm | C42: Calcul via la conductivité connue de l'eau de remplissage en µS/cm
A43: Stap 4 : Berekening via geleidbaarheid van het vulwater in µS/cm | B43: Stap 4 : Berekening via geleidbaarheid van het vulwater in µS/cm | C43: Étape 4 : Calcul via la conductivité de l'eau de remplissage en µS/cm
A44: Geleidbaarheid in µS/cm: | B44: Geleidbaarheid in µS/cm: | C44: Conductivité en µS/cm :
A45: Installatie-inhoud in L | B45: Installatie-inhoud in L | C45: Volume de l'installation en L
A46: Benodigde capaciteit | B46: Benodigde capaciteit | C46: Capacité requise
A47: Benodigde Materialen: | B47: Benodigde Materialen: | C47: Matériaux requis :
A48: Artikelnummer | B48: Artikelnummer | C48: Numéro d'article
A49: Omschrijving | B49: Omschrijving | C49: Description
A50: aantal | B50: aantal | C50: Nombre
A51: prijs | B51: prijs | C51: Prix
A52: Opnieuw beginnen | B52: Opnieuw beginnen | C52: Recommencer
A53: Afsluiten | B53: Afsluiten | C53: Terminer
A54: Stap 4 : Berekening via postnummer installatie-adres | B54: Stap 4 : Berekening via postnummer installatie-adres | C54: Étape 4 : Calcul via le code postal de l'adresse d'installation
A55: Postnummer | B55: Postnummer | C55: Code postal
A56: Geleidbaarheid in µS/cm voor deze postnr: | B56: Geleidbaarheid in µS/cm voor deze postnr: | C56: Conductivité en µS/cm pour ce code postal :
A57: <= Vul hier uw postcode in | B57: <= Vul hier uw postcode in | C57: <= Entrer votre code postal ici
A58: Geen waterbehandeling noodzakelijk | B58: Geen waterbehandeling noodzakelijk | C58: Pas de traitement de l’eau nécessaire
A59: Waterbehandeling noodzakelijk | B59: Waterbehandeling noodzakelijk | C59: Traitement de l’eau nécessaire
A60: Selectie van materialen | B60: Selectie van materialen | C60: Sélection du matériel
A61: Selectie van materialen en diensten | B61: Selectie van materialen en diensten | C61: Sélection du matériel et service
A62: Stap 5 : Keuze van materiaal | B62: Stap 5 : Keuze van materiaal | C62: Étape 5 : sélection du matériel
A63: Stap 5 : Keuze van materiaal en diensten | B63: Stap 5 : Keuze van materiaal en diensten | C63: Étape 5 : sélection du matériel et service
A64: Functie momenteel nog niet beschikbaar | B64: Functie momenteel nog niet beschikbaar | C64: Fonction momentanément indisponible
A65: Installatie-inhoud in L | B65: Installatie-inhoud in L | C65: Contenu de l’installation en L
A66: Debiet pomp bypassunit (th 1800): | B66: Debiet pomp bypassunit (th 1800): | C66: Débit de la pompe de l’unité by-pass (th 1800)
A67: Tijd nodig om volume te behandelen: | B67: Tijd nodig om volume te behandelen: | C67: Temps nécessaire pour le traitement du volume :
A68: Liter / uur | B68: Liter / uur | C68: Litre/heure
A69: =IF($A$1=1,B69,C69) -> Uren | B69: Uren | C69: Heures
A70: Dagen | B70: Dagen | C70: Jours
A71: Aantal liter hars nodig (theoretisch berekend): | B71: Aantal liter hars nodig (theoretisch berekend): | C71: Nombre de litres de résine nécessaires (calcul théorique) :
A72: Aantal liter hars nodig (met 5% reserve,naar boven afgerond): | B72: Aantal liter hars nodig (met 5% reserve,naar boven afgerond): | C72: Nombre de litres de résine nécessaires (avec 5 % de réserve, arrondi au chiffre supérieur) :
A73: Liter | B73: Liter | C73: Litre
A74: of | B74: of | C74: ou
A75: Benodigde materialen voor waterkwaliteit | B75: Benodigde materialen voor waterkwaliteit | C75: Matériel nécessaire pour la qualité de l’eau

Sheet Leveringsgebieden (hidden)
A1: Gemeente | B1: Leveringsgebied(en) | F1: positie / | G1: Lengte | H1: LEV1 | I1: LEV2 | J1: COND1 | K1: COND2
A2: Oudergem | B2: DW B7/ DW B16 | C2: 1160 | D2: 797 | E2: =A2 -> Oudergem | F2: =SEARCH("/",B2) -> 6 | G2: =LEN(B2) -> 13 | H2: DW B7 | I2: DW B16 | J2: 797 | K2: 706 | L2: =IFERROR(IF(J2<K2,K2,J2),"") -> 797
A3: Herne | B3: DW B1 | C3: 1540 | D3: 756 | E3: =A3 -> Herne
A4: Bever | B4: DW B1 | C4: 1547 | D4: 756 | E4: Bever
A5: Hoeilaart | B5: DW B17 | C5: 1560 | D5: 745 | E5: Hoeilaart
A6: Galmaarden | B6: DW B2 | C6: 1570 | D6: 772 | E6: Galmaarden
A7: Sint-Pieters-Leeuw | B7: IWVB-BFI41/IWVB-BFI43 | C7: 1600 | D7: 704.1 | E7: Sint-Pieters-Leeuw | F7: =SEARCH("/",B7) -> 11 | G7: =LEN(B7) -> 21 | H7: Vivaqua-BFI41 | I7: IWVB-BFI43 | J7: 704.1 | K7: 620.3
A8: Drogenbos | B8: IWVB-BFI43 | C8: 1620 | D8: 620.3 | E8: Drogenbos
A9: Linkebeek | B9: Vivaqua-R50 | C9: 1630 | D9: 527.5 | E9: Linkebeek | F9: =SEARCH("/",B9) ->  | G9: =LEN(B9) -> 11 | H9: =LEFT(B9,F9-1) ->  | I9: =MID(B9,F9+1,G9-F9) -> 
A10: Sint-Genesius-Rode | B10: IWVB-B80/IWVB-R50 | C10: 1640 | D10: 704.1 | E10: Sint-Genesius-Rode | F10: =SEARCH("/",B10) -> 9 | G10: =LEN(B10) -> 17 | H10: IWVB-B80 | I10: IWVB-R50 | J10: 638.3 | K10: 704.1 | L10: =IFERROR(IF(J10<K10,K10,J10),"") -> 704.1
A11: Beersel | B11: TMVW LG 6 | C11: 1650 | D11: 784 | E11: Beersel
A12: Pepingen | B12: DW B1/DW B2 | C12: 1670 | D12: 772 | E12: Pepingen | F12: =SEARCH("/",B12) -> 6 | G12: =LEN(B12) -> 11 | H12: =LEFT(B12,F12-1) -> DW B1 | I12: =MID(B12,F12+1,G12-F12) -> DW B2 | J12: 756 | K12: 772
A13: Dilbeek | B13: IWVB-BFI43/IWVB-R50 | C13: 1700 | D13: 704.1 | E13: Dilbeek | F13: =SEARCH("/",B13) -> 11 | G13: =LEN(B13) -> 19 | H13: IWVB-BFI43 | I13: IWVB-R50 | J13: 620.3 | K13: 704.1 | L13: =IFERROR(IF(J13<K13,K13,J13),"") -> 704.1
A14: Asse | B14: TMVW LG 2 | C14: 1730 | D14: 785 | E14: Asse
A15: Ternat | B15: DW B2/TMVW LG 2 | C15: 1740 | D15: 785 | E15: Ternat | F15: =SEARCH("/",B15) -> 6 | G15: =LEN(B15) -> 15 | H15: =LEFT(B15,F15-1) -> DW B2 | I15: =MID(B15,F15+1,G15-F15) -> TMVW LG 2 | J15: 772 | K15: 785
A16: Opwijk | B16: DW B3/TMVW LG 2 | C16: 1745 | D16: 785 | E16: Opwijk | F16: =SEARCH("/",B16) -> 6 | G16: =LEN(B16) -> 15 | H16: =LEFT(B16,F16-1) -> DW B3 | I16: =MID(B16,F16+1,G16-F16) -> TMVW LG 2 | J16: 716 | K16: 785
A17: Lennik | B17: DW B2 | C17: 1750 | D17: 772 | E17: Lennik
A18: Gooik | B18: DW B2 | C18: 1755 | D18: 772 | E18: Gooik
A19: Roosdaal | B19: DW B2 | C19: 1760 | D19: 772 | E19: Roosdaal
A20: Liedekerke | B20: TMVW LG 2 | C20: 1770 | D20: 785 | E20: Liedekerke
A21: Wemmel | B21: IWVB-R50 | C21: 1780 | D21: 527.5 | E21: Wemmel | F21: =SEARCH("/",B21) ->  | G21: =LEN(B21) -> 8
A22: Merchtem | B22: DW B3 | C22: 1785 | D22: 716 | E22: Merchtem
A23: Affligem | B23: TMVW LG 2 | C23: 1790 | D23: 785 | E23: Affligem
A24: Vilvoorde | B24: DW B3/DW B5 | C24: 1800 | D24: 716 | E24: Vilvoorde | F24: =SEARCH("/",B24) -> 6 | G24: =LEN(B24) -> 11 | H24: =LEFT(B24,F24-1) -> DW B3 | I24: =MID(B24,F24+1,G24-F24) -> DW B5 | J24: 716 | K24: 705.6666667
A25: Steenokkerzeel | B25: DW B5/Vivaqua-R50 | C25: 1820 | D25: 705.6666667 | E25: Steenokkerzeel | F25: =SEARCH("/",B25) -> 6 | G25: =LEN(B25) -> 17 | H25: =LEFT(B25,F25-1) -> DW B5 | I25: =MID(B25,F25+1,G25-F25) -> Vivaqua-R50 | J25: 705.6666667 | K25: 527.5
A26: Londerzeel | B26: DW B3 | C26: 1840 | D26: 716 | E26: Londerzeel
A27: Grimbergen | B27: DW B3/IWVB-BFI41 | C27: 1850 | D27: 716 | E27: Grimbergen | F27: =SEARCH("/",B27) -> 6 | G27: =LEN(B27) -> 16 | H27: DW B3 | I27: Vivaqua-BFI41 | J27: 716 | K27: 704.1
A28: Meise | B28: DW B3 | C28: 1860 | D28: 716 | E28: Meise
A29: Kampenhout | B29: DW B5 | C29: 1910 | D29: 705.6666667 | E29: Kampenhout
A30: Zaventem | B30: DW B5/IWVB-BFI41 | C30: 1930 | D30: 705.6666667 | E30: Zaventem | F30: =SEARCH("/",B30) -> 6 | G30: =LEN(B30) -> 16 | H30: DW B5 | I30: Vivaqua-BFI41 | J30: 705.6666667 | K30: 704.1
A31: Kraainem | B31: Vivaqua-BFI41 | C31: 1950 | D31: 704.1 | E31: Kraainem | F31: =SEARCH("/",B31) ->  | G31: =LEN(B31) -> 13 | H31: =LEFT(B31,F31-1) ->  | I31: =MID(B31,F31+1,G31-F31) -> 
A32: Zemst | B32: DW B3/DW B5/DW B15 | C32: 1980 | D32: 716 | E32: Zemst | F32: =SEARCH("/",B32) -> 6 | G32: =LEN(B32) -> 18 | H32: DW B3 | I32: DW B15 | J32: 716 | K32: 446.85
A33: Berendrecht | B33: AWW-PB | C33: 2040 | D33: 573 | E33: Berendrecht
A34: Zandvliet | B34: AWW-PB | C34: 2040 | D34: 573 | E34: Zandvliet
A35: Antwerpen | B35: AWW-PST | C35: 2060 | D35: 747 | E35: Antwerpen
A36: Zwijndrecht | B36: AWW-PST | C36: 2070 | D36: 747 | E36: Zwijndrecht
A37: Wijnegem | B37: Pidpa 10 | C37: 2110 | D37: 587.39 | E37: Wijnegem
A38: Borsbeek | B38: Pidpa 10 | C38: 2150 | D38: 587.39 | E38: Borsbeek
A39: Wommelgem | B39: Pidpa 10 | C39: 2160 | D39: 587.39 | E39: Wommelgem
A40: Herentals | B40: Pidpa 4 | C40: 2200 | D40: 401.8 | E40: Herentals
A41: Heist-op-den-Berg | B41: Pidpa 11 | C41: 2220 | D41: 458.56 | E41: Heist-op-den-Berg
A42: Herselt | B42: Pidpa 11 | C42: 2230 | D42: 458.56 | E42: Herselt
A43: Hulshout | B43: Pidpa 11 | C43: 2235 | D43: 458.56 | E43: Hulshout
A44: Zandhoven | B44: Pidpa 4/Pidpa 13 | C44: 2240 | D44: 451.35 | E44: Zandhoven | F44: =SEARCH("/",B44) -> 8 | G44: =LEN(B44) -> 16 | H44: =LEFT(B44,F44-1) -> Pidpa 4 | I44: =MID(B44,F44+1,G44-F44) -> Pidpa 13 | J44: 401.8 | K44: 451.35
A45: Olen | B45: Pidpa 4 | C45: 2250 | D45: 401.8 | E45: Olen
A46: Westerlo | B46: Pidpa 11 | C46: 2260 | D46: 458.56 | E46: Westerlo
A47: Herenthout | B47: Pidpa 4 | C47: 2270 | D47: 401.8 | E47: Herenthout
A48: Lille | B48: Pidpa 4/Pidpa 5/Pidpa 8 | C48: 2275 | D48: 446.85 | E48: Lille | F48: =SEARCH("/",B48) -> 8 | G48: =LEN(B48) -> 23 | H48: Pidpa 4 | I48: Pidpa 8 | J48: 401.8 | K48: 446.85 | L48: =IFERROR(IF(J48<K48,K48,J48),"") -> 446.85
A49: Grobbendonk | B49: Pidpa 4/Pidpa 13 | C49: 2280 | D49: 451.35 | E49: Grobbendonk | F49: =SEARCH("/",B49) -> 8 | G49: =LEN(B49) -> 16 | H49: =LEFT(B49,F49-1) -> Pidpa 4 | I49: =MID(B49,F49+1,G49-F49) -> Pidpa 13 | J49: 401.8 | K49: 451.35
A50: Vorselaar | B50: Pidpa 4 | C50: 2290 | D50: 401.8 | E50: Vorselaar
A51: Turnhout | B51: Pidpa 9 | C51: 2300 | D51: 338.74 | E51: Turnhout
A52: Rijkevorsel | B52: Pidpa 5 | C52: 2310 | D52: 403.6 | E52: Rijkevorsel
A53: Hoogstraten | B53: Pidpa 5 | C53: 2320 | D53: 403.6 | E53: Hoogstraten
A54: Merksplas | B54: Pidpa 8 | C54: 2330 | D54: 446.85 | E54: Merksplas
A55: Beerse | B55: Pidpa 5/Pidpa 8 | C55: 2340 | D55: 446.85 | E55: Beerse | F55: =SEARCH("/",B55) -> 8 | G55: =LEN(B55) -> 15 | H55: =LEFT(B55,F55-1) -> Pidpa 5 | I55: =MID(B55,F55+1,G55-F55) -> Pidpa 8 | J55: 403.6 | K55: 446.85
A56: Vosselaar | B56: Pidpa 8 | C56: 2350 | D56: 446.85 | E56: Vosselaar
A57: Arendonk | B57: Pidpa 9 | C57: 2370 | D57: 338.74 | E57: Arendonk
A58: Ravels | B58: Pidpa 9 | C58: 2380 | D58: 338.74 | E58: Ravels
A59: Baarle-Hertog | B59: Pidpa 8 | C59: 2387 | D59: 446.85 | E59: Baarle-Hertog
A60: Malle | B60: Pidpa 5 | C60: 2390 | D60: 403.6 | E60: Malle
A61: Mol | B61: Pidpa 7/Pidpa 9 | C61: 2400 | D61: 338.74 | E61: Mol | F61: =SEARCH("/",B61) -> 8 | G61: =LEN(B61) -> 15 | H61: =LEFT(B61,F61-1) -> Pidpa 7 | I61: =MID(B61,F61+1,G61-F61) -> Pidpa 9 | J61: 312.61 | K61: 338.74
A62: Laakdal | B62: Pidpa 11 | C62: 2430 | D62: 458.56 | E62: Laakdal
A63: Geel | B63: Pidpa 1/Pidpa 4/Pidpa 7/Pidpa 9/Pidpa 11 | C63: 2440 | D63: 458.56 | E63: Geel | F63: =SEARCH("/",B63) -> 8 | G63: =LEN(B63) -> 40 | H63: Pidpa 1 | I63: Pidpa 4/Pidpa 7/Pidpa 9/Pidpa 11 | J63: 359.46 | K63: 458.56 | L63: =IFERROR(IF(J63<K63,K63,J63),"") -> 458.56
A64: Meerhout | B64: Pidpa 1 | C64: 2450 | D64: 359.46 | E64: Meerhout
A65: Kasterlee | B65: Pidpa 4/Pidpa 9 | C65: 2460 | D65: 401.8 | E65: Kasterlee | F65: =SEARCH("/",B65) -> 8 | G65: =LEN(B65) -> 15 | H65: =LEFT(B65,F65-1) -> Pidpa 4 | I65: =MID(B65,F65+1,G65-F65) -> Pidpa 9 | J65: 401.8 | K65: 338.74
A66: Retie | B66: Pidpa 9 | C66: 2470 | D66: 338.74 | E66: Retie
A67: Dessel | B67: Pidpa 9 | C67: 2480 | D67: 338.74 | E67: =A67 -> Dessel
A68: Balen | B68: Pidpa 1/Pidpa 7 | C68: 2490 | D68: 359.46 | E68: Balen | F68: =SEARCH("/",B68) -> 8 | G68: =LEN(B68) -> 15 | H68: =LEFT(B68,F68-1) -> Pidpa 1 | I68: =MID(B68,F68+1,G68-F68) -> Pidpa 7 | J68: 359.46 | K68: 312.61
A69: Lier | B69: Pidpa 13 | C69: 2500 | D69: 451.35 | E69: Lier
A70: Ranst | B70: Pidpa 10/Pidpa 13 | C70: 2520 | D70: 587.39 | E70: Ranst | F70: =SEARCH("/",B70) -> 9 | G70: =LEN(B70) -> 17 | H70: =LEFT(B70,F70-1) -> Pidpa 10 | I70: =MID(B70,F70+1,G70-F70) -> Pidpa 13 | J70: 587.39 | K70: 451.35
A71: Boechout | B71: AWW-PST/Pidpa 13 | C71: 2530 | D71: 747 | E71: Boechout | F71: =SEARCH("/",B71) -> 8 | G71: =LEN(B71) -> 16 | H71: =LEFT(B71,F71-1) -> AWW-PST | I71: =MID(B71,F71+1,G71-F71) -> Pidpa 13 | J71: 747 | K71: 451.35
A72: Hove | B72: AWW-PST | C72: 2540 | D72: 747 | E72: Hove
A73: Lint | B73: Pidpa 13 | C73: 2547 | D73: 451.35 | E73: Lint
A74: Kontich | B74: AWW-PST/Pidpa 12 | C74: 2550 | D74: 747 | E74: Kontich | F74: =SEARCH("/",B74) -> 8 | G74: =LEN(B74) -> 16 | H74: =LEFT(B74,F74-1) -> AWW-PST | I74: =MID(B74,F74+1,G74-F74) -> Pidpa 12 | J74: 747 | K74: 480.18
A75: Nijlen | B75: Pidpa 13 | C75: 2560 | D75: 451.35 | E75: Nijlen
A76: Duffel | B76: Pidpa 12/Pidpa 13 | C76: 2570 | D76: 480.18 | E76: Duffel | F76: =SEARCH("/",B76) -> 9 | G76: =LEN(B76) -> 17 | H76: =LEFT(B76,F76-1) -> Pidpa 12 | I76: =MID(B76,F76+1,G76-F76) -> Pidpa 13 | J76: 480.18 | K76: 451.35
A77: Putte | B77: Pidpa 11 | C77: 2580 | D77: 458.56 | E77: Putte
A78: Berlaar | B78: Pidpa 13 | C78: 2590 | D78: 451.35 | E78: Berlaar
A79: Hemiksem | B79: Pidpa 12 | C79: 2620 | D79: 480.18 | E79: Hemiksem
A80: Schelle | B80: Pidpa 12 | C80: 2627 | D80: 480.18 | E80: Schelle
A81: Aartselaar | B81: Pidpa 12 | C81: 2630 | D81: 480.18 | E81: Aartselaar
A82: Mortsel | B82: AWW-PST | C82: 2640 | D82: 747 | E82: Mortsel
A83: Edegem | B83: AWW-PST | C83: 2650 | D83: 747 | E83: Edegem
A84: Mechelen | B84: Pidpa 13/Pidpa 14 | C84: 2800 | D84: 570.27 | E84: Mechelen | F84: =SEARCH("/",B84) -> 9 | G84: =LEN(B84) -> 17 | H84: =LEFT(B84,F84-1) -> Pidpa 13 | I84: =MID(B84,F84+1,G84-F84) -> Pidpa 14 | J84: 451.35 | K84: 570.27
A85: Bonheiden | B85: Pidpa 11 | C85: 2820 | D85: 458.56 | E85: Bonheiden
A86: Willebroek | B86: Pidpa 14 | C86: 2830 | D86: 570.27 | E86: Willebroek
A87: Rumst | B87: Pidpa 12 | C87: 2840 | D87: 480.18 | E87: Rumst
A88: Niel | B88: Pidpa 12 | C88: 2845 | D88: 480.18 | E88: Niel
A89: Boom | B89: Pidpa 12 | C89: 2850 | D89: 480.18 | E89: Boom
A90: Sint-Katelijne-Waver | B90: Pidpa 11/Pidpa 13 | C90: 2860 | D90: 458.56 | E90: Sint-Katelijne-Waver | F90: =SEARCH("/",B90) -> 9 | G90: =LEN(B90) -> 17 | H90: =LEFT(B90,F90-1) -> Pidpa 11 | I90: =MID(B90,F90+1,G90-F90) -> Pidpa 13 | J90: 458.56 | K90: 451.35
A91: Puurs | B91: Pidpa 14 | C91: 2870 | D91: 570.27 | E91: Puurs
A92: Bornem | B92: Pidpa 14 | C92: 2880 | D92: 570.27 | E92: Bornem
A93: Sint-Amands | B93: Pidpa 14 | C93: 2890 | D93: 570.27 | E93: Sint-Amands
A94: Essen | B94: Pidpa 3 | C94: 2910 | D94: 441.44 | E94: Essen
A95: Kalmthout | B95: Pidpa 3/Pidpa 6 | C95: 2920 | D95: 580.65 | E95: Kalmthout | F95: =SEARCH("/",B95) -> 8 | G95: =LEN(B95) -> 15 | H95: =LEFT(B95,F95-1) -> Pidpa 3 | I95: =MID(B95,F95+1,G95-F95) -> Pidpa 6 | J95: 441.44 | K95: 580.65
A96: Brasschaat | B96: Pidpa 2 | C96: 2930 | D96: 499.1 | E96: Brasschaat
A97: Stabroek | B97: Pidpa 6 | C97: 2940 | D97: 580.65 | E97: Stabroek
A98: Brecht | B98: Pidpa 2/Pidpa5 | C98: 2960 | D98: 499.1 | E98: Brecht | F98: =SEARCH("/",B98) -> 8 | G98: =LEN(B98) -> 14 | H98: Pidpa 2 | I98: Pidpa 5 | J98: 499.1 | K98: 403.6
A99: Schilde | B99: Pidpa 2/Pidpa 5/Pidpa 10 | C99: 2970 | D99: 587.39 | E99: Schilde | F99: 8 | G99: 24 | H99: Pidpa 2 | I99: Pidpa 10 | J99: 499.1 | K99: 587.39 | L99: =IFERROR(IF(J99<K99,K99,J99),"") -> 587.39
A100: Halle | B100: DW B1/IWVB-BFI41/IWVB-EFI35 | C100: 2980 | D100: 756 | E100: Halle | F100: 6 | G100: 27 | H100: DW B1 | I100: Vivaqua-BFI41 | J100: 756 | K100: 704.1
A101: Zoersel | B101: Pidpa 4/Pidpa 5 | C101: 2980 | D101: 403.6 | E101: Zoersel | F101: 8 | G101: 15 | H101: =LEFT(B101,F101-1) -> Pidpa 4 | I101: =MID(B101,F101+1,G101-F101) -> Pidpa 5 | J101: 401.8 | K101: 403.6
A102: Wuustwezel | B102: Pidpa 5/Pidpa 6 | C102: 2990 | D102: 580.65 | E102: Wuustwezel | F102: 8 | G102: 15 | H102: =LEFT(B102,F102-1) -> Pidpa 5 | I102: =MID(B102,F102+1,G102-F102) -> Pidpa 6 | J102: 403.6 | K102: 580.65
A103: Leuven | B103: DW B6/DW B7/DW B16 | C103: 3000 | D103: 805 | E103: Leuven | F103: 6 | G103: 18 | H103: DW B6 | I103: DW B16 | J103: 805 | K103: 706 | L103: =IFERROR(IF(J103<K103,K103,J103),"") -> 805
A104: Herent | B104: DW B5/DW B6 | C104: 3020 | D104: 805 | E104: Herent | F104: 6 | G104: 11 | H104: =LEFT(B104,F104-1) -> DW B5 | I104: =MID(B104,F104+1,G104-F104) -> DW B6 | J104: 705.6666667 | K104: 805
A105: Huldenberg | B105: DW B7/DW B8 | C105: 3040 | D105: 1599 | E105: Huldenberg | F105: 6 | G105: 11 | H105: DW B7 | I105: DW B8 | J105: 797 | K105: 1599 | L105: =IFERROR(IF(J105<K105,K105,J105),"") -> 1599
A106: Bertem | B106: DW B7 | C106: 3060 | D106: 797 | E106: Bertem
A107: Kortenberg | B107: DW B5/IWVB-BFI41 | C107: 3070 | D107: 705.6666667 | E107: Kortenberg | F107: =SEARCH("/",B107) -> 6 | G107: =LEN(B107) -> 16 | H107: DW B5 | I107: Vivaqua-BFI41 | J107: 705.6666667 | K107: 704.1
A108: Tervuren | B108: DW B7/DW B8/IWVB-BFI41 | C108: 3080 | D108: 1599 | E108: Tervuren | F108: =SEARCH("/",B108) -> 6 | G108: =LEN(B108) -> 22 | H108: DW B7 | I108: DW B8 | J108: 797 | K108: 1599 | L108: =IFERROR(IF(J108<K108,K108,J108),"") -> 1599
A109: Overijse | B109: DW B8 | C109: 3090 | D109: 1599 | E109: Overijse | L109: =IFERROR(IF(J109<K109,K109,J109),"") -> 0
A110: Tremelo | B110: DW B4 | C110: 3120 | D110: 701.0714286 | E110: Tremelo
A111: Begijnendijk | B111: DW B12 | C111: 3130 | D111: 594 | E111: Begijnendijk
A112: Keerbergen | B112: DW B4/DW B19 | C112: 3140 | D112: 701.0714286 | E112: Keerbergen | F112: =SEARCH("/",B112) -> 6 | G112: =LEN(B112) -> 12 | H112: =LEFT(B112,F112-1) -> DW B4 | I112: =MID(B112,F112+1,G112-F112) -> DW B19 | J112: 701.0714286 | K112: 458.56
A113: Haacht | B113: DW B4/DW B5 | C113: 3150 | D113: 705.6666667 | E113: Haacht | F113: =SEARCH("/",B113) -> 6 | G113: =LEN(B113) -> 11 | H113: =LEFT(B113,F113-1) -> DW B4 | I113: =MID(B113,F113+1,G113-F113) -> DW B5 | J113: 701.0714286 | K113: 705.6666667
A114: Boortmeerbeek | B114: DW B5 | C114: 3190 | D114: 705.6666667 | E114: Boortmeerbeek
A115: Aarschot | B115: DW B12 | C115: 3200 | D115: 594 | E115: Aarschot
A116: Lubbeek | B116: DW B6/DW B9/DW B16 | C116: 3210 | D116: 913 | E116: Lubbeek | F116: =SEARCH("/",B116) -> 6 | G116: =LEN(B116) -> 18 | H116: DW B6 | I116: DW B9 | J116: 805 | K116: 913 | L116: =IFERROR(IF(J116<K116,K116,J116),"") -> 913
A117: Holsbeek | B117: DW B6/DW B12 | C117: 3220 | D117: 805 | E117: Holsbeek | F117: =SEARCH("/",B117) -> 6 | G117: =LEN(B117) -> 12 | H117: =LEFT(B117,F117-1) -> DW B6 | I117: =MID(B117,F117+1,G117-F117) -> DW B12 | J117: 805 | K117: 594
A118: Scherpenheuvel-Zcihem | B118: DW B12 | C118: 3270 | D118: 594 | E118: Scherpenheuvel-Zcihem
A119: Diest | B119: DW B12/DW B13 | C119: 3290 | D119: 658 | E119: Diest | F119: =SEARCH("/",B119) -> 7 | G119: =LEN(B119) -> 13 | H119: =LEFT(B119,F119-1) -> DW B12 | I119: =MID(B119,F119+1,G119-F119) -> DW B13 | J119: 594 | K119: 658
A120: Tienen | B120: DW B9/DW B10/DW B18 | C120: 3300 | D120: 913 | E120: Tienen | F120: =SEARCH("/",B120) -> 6 | G120: =LEN(B120) -> 19 | H120: DW B9 | I120: DW B10/DW B18 | J120: 913 | K120: 0 | L120: =IFERROR(IF(J120<K120,K120,J120),"") -> 913
A121: Hoegaarden | B121: DW B9 | C121: 3320 | D121: 913 | E121: Hoegaarden | L121: =IFERROR(IF(J121<K121,K121,J121),"") -> 0
A122: Linter | B122: DW B18 | C122: 3350 | D122: 758 | E122: Linter
A123: Bierbeek | B123: DW B7/DW B16 | C123: 3360 | D123: 797 | E123: Bierbeek | F123: =SEARCH("/",B123) -> 6 | G123: =LEN(B123) -> 12 | H123: =LEFT(B123,F123-1) -> DW B7 | I123: =MID(B123,F123+1,G123-F123) -> DW B16 | J123: 797 | K123: 706
A124: Boutersem | B124: DW B9 | C124: 3370 | D124: 913 | E124: Boutersem | L124: =IFERROR(IF(J124<K124,K124,J124),"") -> 0
A125: Glabbeek | B125: DW B9/DW B18 | C125: 3380 | D125: 913 | E125: Glabbeek | F125: =SEARCH("/",B125) -> 6 | G125: =LEN(B125) -> 12 | H125: =LEFT(B125,F125-1) -> DW B9 | I125: =MID(B125,F125+1,G125-F125) -> DW B18 | J125: 913 | K125: 758 | L125: =IFERROR(IF(J125<K125,K125,J125),"") -> 913
A126: Tielt-Winge | B126: DW B12 | C126: 3390 | D126: 594 | E126: Tielt-Winge
A127: Landen | B127: DW B11/DW B18 | C127: 3400 | D127: 1007 | E127: Landen | F127: =SEARCH("/",B127) -> 7 | G127: =LEN(B127) -> 13 | H127: =LEFT(B127,F127-1) -> DW B11 | I127: =MID(B127,F127+1,G127-F127) -> DW B18 | J127: 1007 | K127: 758 | L127: =IFERROR(IF(J127<K127,K127,J127),"") -> 1007
A128: Zoutleeuw | B128: DW B18 | C128: 3440 | D128: 758 | E128: Zoutleeuw
A129: Geetbets | B129: DW B14 | C129: 3450 | D129: 921 | E129: Geetbets | L129: =IFERROR(IF(J129<K129,K129,J129),"") -> 0
A130: Bekkevoort | B130: DW B12 | C130: 3460 | D130: 594 | E130: Bekkevoort
A131: Kortenaken | B131: DW B18 | C131: 3470 | D131: 758 | E131: =A131 -> Kortenaken
A132: Hasselt | B132: DW L4/DW L6/DW L17 | C132: 3500 | D132: 779 | E132: Hasselt | F132: =SEARCH("/",B132) -> 6 | G132: =LEN(B132) -> 18 | H132: DW L4 | I132: DW L17 | J132: 606 | K132: 779
A133: Zonhoven | B133: DW L6 | C133: 3520 | D133: 619 | E133: Zonhoven
A134: Houthalen-Helchteren | B134: DW L6 | C134: 3530 | D134: 619 | E134: Houthalen-Helchteren
A135: Halen | B135: DW L4/DW L10 | C135: 3545 | D135: 961 | E135: Halen | F135: =SEARCH("/",B135) -> 6 | G135: =LEN(B135) -> 12 | H135: =LEFT(B135,F135-1) -> DW L4 | I135: =MID(B135,F135+1,G135-F135) -> DW L10 | J135: 606 | K135: 961 | L135: =IFERROR(IF(J135<K135,K135,J135),"") -> 961
A136: Heusden-Zolder | B136: DW L5/DW L6 | C136: 3550 | D136: 848 | E136: Heusden-Zolder | F136: 6 | G136: 11 | H136: =LEFT(B136,F136-1) -> DW L5 | I136: =MID(B136,F136+1,G136-F136) -> DW L6 | J136: 848 | K136: 619 | L136: =IFERROR(IF(J136<K136,K136,J136),"") -> 848
A137: Lummen | B137: DW L1/DW L4/DW L6 | C137: 3560 | D137: 619 | E137: Lummen | F137: 6 | G137: 17 | H137: DW L1 | I137: DW L6 | J137: 415 | K137: 619 | L137: =IFERROR(IF(J137<K137,K137,J137),"") -> 619
A138: Alken | B138: DW L4/DW L10 | C138: 3570 | D138: 961 | E138: Alken | F138: 6 | G138: 12 | H138: =LEFT(B138,F138-1) -> DW L4 | I138: =MID(B138,F138+1,G138-F138) -> DW L10 | J138: 606 | K138: 961 | L138: =IFERROR(IF(J138<K138,K138,J138),"") -> 961
A139: Beringen | B139: DW L1/DW L6 | C139: 3580 | D139: 619 | E139: Beringen | F139: 6 | G139: 11 | H139: DW L1 | I139: DW L6 | J139: 415 | K139: 619
A140: Diepenbeek | B140: DW L4/DW L6 | C140: 3590 | D140: 619 | E140: Diepenbeek | F140: 6 | G140: 11 | H140: DW L4 | I140: DW L6 | J140: 606 | K140: 619
A141: Genk | B141: DW L4/DW L6 | C141: 3600 | D141: 619 | E141: Genk | F141: 6 | G141: 11 | H141: DW L4 | I141: DW L6 | J141: 606 | K141: 619
A142: Lanaken | B142: DW L4/DW L8 | C142: 3620 | D142: 609 | E142: Lanaken | F142: 6 | G142: 11 | H142: DW L4 | I142: DW L8 | J142: 606 | K142: 609
A143: Maasmechelen | B143: DW L4/DW L6 | C143: 3630 | D143: 619 | E143: Maasmechelen | F143: 6 | G143: 11 | H143: DW L4 | I143: DW L6 | J143: 606 | K143: 619
A144: Kinrooi | B144: DW L4 | C144: 3640 | D144: 606 | E144: Kinrooi
A145: Dilsen-Stokkem | B145: DW L4 | C145: 3650 | D145: 606 | E145: Dilsen-Stokkem
A146: Opglabbeek | B146: DW L6 | C146: 3660 | D146: 619 | E146: Opglabbeek
A147: As | B147: DW L6 | C147: 3665 | D147: 619 | E147: As
A148: Meeuwen-Gruitrode | B148: DW L3/DW L6 | C148: 3670 | D148: 619 | E148: Meeuwen-Gruitrode | F148: =SEARCH("/",B148) -> 6 | G148: =LEN(B148) -> 11 | H148: =LEFT(B148,F148-1) -> DW L3 | I148: =MID(B148,F148+1,G148-F148) -> DW L6 | J148: 344 | K148: 619
A149: Oud-Turnhout | B149: Pidpa 9 | C149: 3670 | D149: 338.74 | E149: Oud-Turnhout
A150: Maaseik | B150: DW L4 | C150: 3680 | D150: 606 | E150: Maaseik
A151: Zutendaal | B151: DW L4/DW L6 | C151: 3690 | D151: 619 | E151: Zutendaal | F151: =SEARCH("/",B151) -> 6 | G151: =LEN(B151) -> 11 | H151: =LEFT(B151,F151-1) -> DW L4 | I151: =MID(B151,F151+1,G151-F151) -> DW L6 | J151: 606 | K151: 619
A152: Tongeren | B152: DW L7/DW L13/DW L16 | C152: 3700 | D152: 966 | E152: Tongeren | F152: =SEARCH("/",B152) -> 6 | G152: =LEN(B152) -> 19 | H152: DW L7 | I152: DW L16 | J152: 896 | K152: 966 | L152: =IFERROR(IF(J152<K152,K152,J152),"") -> 966
A153: Herstappe | B153: DW L13 | C153: 3717 | D153: 966 | E153: Herstappe | L153: =IFERROR(IF(J153<K153,K153,J153),"") -> 0
A154: Kortessem | B154: DW L7 | C154: 3720 | D154: 896 | E154: Kortessem | L154: =IFERROR(IF(J154<K154,K154,J154),"") -> 0
A155: Hoeselt | B155: DW L7 | C155: 3730 | D155: 896 | E155: Hoeselt | L155: =IFERROR(IF(J155<K155,K155,J155),"") -> 0
A156: Bilzen | B156: DW L8 | C156: 3740 | D156: 609 | E156: Bilzen
A157: Riemst | B157: DW L8/DW L14 | C157: 3770 | D157: 785 | E157: Riemst | F157: =SEARCH("/",B157) -> 6 | G157: =LEN(B157) -> 12 | H157: =LEFT(B157,F157-1) -> DW L8 | I157: =MID(B157,F157+1,G157-F157) -> DW L14 | J157: 609 | K157: 785
A158: Kapelle op den Bos | B158: DW B3 | C158: 3770 | D158: 716 | E158: Kapelle op den Bos
A159: Kapellen | B159: Pidpa 2/Pidpa 6/AWW PST | C159: 3770 | D159: 580.65 | E159: Kapellen | F159: =SEARCH("/",B159) -> 8 | G159: =LEN(B159) -> 23 | H159: Pidpa 2 | I159: Pidpa 6 | J159: 499.1 | K159: 580.65
A160: Voeren | B160: DW L15 | C160: 3790 | D160: 314 | E160: Voeren
A161: Sint-Truiden | B161: DW L9/DW L10 | C161: 3800 | D161: 961 | E161: Sint-Truiden | F161: =SEARCH("/",B161) -> 6 | G161: =LEN(B161) -> 12 | H161: =LEFT(B161,F161-1) -> DW L9 | I161: =MID(B161,F161+1,G161-F161) -> DW L10 | J161: 959 | K161: 961 | L161: =IFERROR(IF(J161<K161,K161,J161),"") -> 961
A162: Wellen | B162: DW L10 | C162: 3830 | D162: 961 | E162: Wellen | L162: =IFERROR(IF(J162<K162,K162,J162),"") -> 0
A163: Borgloon | B163: DW L7/DW L12 | C163: 3840 | D163: 896 | E163: Borgloon | F163: =SEARCH("/",B163) -> 6 | G163: =LEN(B163) -> 12 | H163: =LEFT(B163,F163-1) -> DW L7 | I163: =MID(B163,F163+1,G163-F163) -> DW L12 | J163: 896 | K163: 758 | L163: =IFERROR(IF(J163<K163,K163,J163),"") -> 896
A164: Heers | B164: DW L11/DW L12 | C164: 3870 | D164: 784 | E164: Heers | F164: =SEARCH("/",B164) -> 7 | G164: =LEN(B164) -> 13 | H164: =LEFT(B164,F164-1) -> DW L11 | I164: =MID(B164,F164+1,G164-F164) -> DW L12 | J164: 784 | K164: 758
A165: Gingelom | B165: DW L11 | C165: 3890 | D165: 784 | E165: Gingelom
A166: Overpelt | B166: DW L2 | C166: 3900 | D166: 280 | E166: Overpelt
A167: Neerpelt | B167: DW L2 | C167: 3910 | D167: 280 | E167: Neerpelt
A168: Lommel | B168: DW L1/DW L2 | C168: 3920 | D168: 415 | E168: Lommel | F168: =SEARCH("/",B168) -> 6 | G168: =LEN(B168) -> 11 | H168: =LEFT(B168,F168-1) -> DW L1 | I168: =MID(B168,F168+1,G168-F168) -> DW L2 | J168: 415 | K168: 280
A169: Hamont-Achel | B169: DW L2 | C169: 3930 | D169: 280 | E169: Hamont-Achel
A170: Hechtel-Eksel | B170: DW L2 | C170: 3940 | D170: 280 | E170: Hechtel-Eksel
A171: Ham | B171: DW L1 | C171: 3945 | D171: 415 | E171: Ham
A172: Bocholt | B172: DW L2/DW L3 | C172: 3950 | D172: 344 | E172: Bocholt | F172: =SEARCH("/",B172) -> 6 | G172: =LEN(B172) -> 11 | H172: =LEFT(B172,F172-1) -> DW L2 | I172: =MID(B172,F172+1,G172-F172) -> DW L3 | J172: 280 | K172: 344
A173: Bree | B173: DW L3 | C173: 3960 | D173: 344 | E173: Bree
A174: Leopoldsburg | B174: DW L1 | C174: 3970 | D174: 415 | E174: Leopoldsburg
A175: Tessenderlo | B175: DW L1/DW L6 | C175: 3980 | D175: 619 | E175: Tessenderlo | F175: =SEARCH("/",B175) -> 6 | G175: =LEN(B175) -> 11 | H175: =LEFT(B175,F175-1) -> DW L1 | I175: =MID(B175,F175+1,G175-F175) -> DW L6 | J175: 415 | K175: 619
A176: Peer | B176: DW L2 | C176: 3990 | D176: 280 | E176: Peer
A177: Schoten | B177: Pidpa 2 | C177: 4782 | D177: 499.1 | E177: Schoten
A178: Lo-Reninge | B178: DW WVL7 | C178: 4987 | D178: 1101 | E178: Lo-Reninge | L178: =IFERROR(IF(J178<K178,K178,J178),"") -> 0
A179: Sint- Lievens - Houtem | B179: TMVW LG 2 | C179: 5377 | D179: 785 | E179: Sint- Lievens - Houtem
A180: Maarkedal | B180: TMVW LG 1 | C180: 6238 | D180: 853 | E180: Maarkedal | L180: =IFERROR(IF(J180<K180,K180,J180),"") -> 0
A181: Rostelaar | B181: DW B4/DW B6 | C181: 6730 | D181: 805 | E181: Rostelaar | F181: =SEARCH("/",B181) -> 6 | G181: =LEN(B181) -> 11 | H181: =LEFT(B181,F181-1) -> DW B4 | I181: =MID(B181,F181+1,G181-F181) -> DW B6 | J181: 701.0714286 | K181: 805
A182: Herk De Stad | B182: DW L10 | C182: 7742 | D182: 961 | E182: Herk De Stad | L182: =IFERROR(IF(J182<K182,K182,J182),"") -> 0
A183: Brugge | B183: TMVW LG 1/TMVW LG 2 | C183: 8000 | D183: 853 | E183: Brugge | F183: =SEARCH("/",B183) -> 10 | G183: =LEN(B183) -> 19 | H183: =LEFT(B183,F183-1) -> TMVW LG 1 | I183: =MID(B183,F183+1,G183-F183) -> TMVW LG 2 | J183: 853 | K183: 785 | L183: =IFERROR(IF(J183<K183,K183,J183),"") -> 853
A184: Oostkamp | B184: DW WVL11 | C184: 8020 | D184: 712 | E184: Oostkamp
A185: Zedelgem | B185: DW WVL9/DW VL10/DW WVL11 | C185: 8210 | D185: 1197 | E185: Zedelgem | F185: =SEARCH("/",B185) -> 8 | G185: =LEN(B185) -> 24 | H185: DW WVL9 | I185: DW WVL11 | J185: 1197 | K185: 712 | L185: =IFERROR(IF(J185<K185,K185,J185),"") -> 1197
A186: Knokke-Heist | B186: Knokke-Knokke/Knokke-Heist | C186: 8300 | D186: 743 | E186: Knokke-Heist | F186: =SEARCH("/",B186) -> 14 | G186: =LEN(B186) -> 26 | H186: =LEFT(B186,F186-1) -> Knokke-Knokke | I186: =MID(B186,F186+1,G186-F186) -> Knokke-Heist | J186: 743 | K186: 584
A187: Damme | B187: TMVW LG 2 | C187: 8340 | D187: 785 | E187: Damme
A188: Blankenberge | B188: TMVW LG 2 | C188: 8370 | D188: 785 | E188: Blankenberge
A189: Zuienkerke | B189: TMVW LG 2 | C189: 8377 | D189: 785 | E189: Zuienkerke
A190: Oostende | B190: DW WVL12/TMVW LG 1 | C190: 8400 | D190: 1172 | E190: Oostende | F190: =SEARCH("/",B190) -> 9 | G190: =LEN(B190) -> 18 | H190: =LEFT(B190,F190-1) -> DW WVL12 | I190: =MID(B190,F190+1,G190-F190) -> TMVW LG 1 | J190: 1172 | K190: 853 | L190: =IFERROR(IF(J190<K190,K190,J190),"") -> 1172
A191: De Haan | B191: TMVW LG 2 | C191: 8420 | D191: 785 | E191: De Haan
A192: Middelkerke | B192: DW WVL7/TMVW LG 1 | C192: 8430 | D192: 1101 | E192: Middelkerke | F192: =SEARCH("/",B192) -> 8 | G192: =LEN(B192) -> 17 | H192: =LEFT(B192,F192-1) -> DW WVL7 | I192: =MID(B192,F192+1,G192-F192) -> TMVW LG 1 | J192: 1101 | K192: 853 | L192: =IFERROR(IF(J192<K192,K192,J192),"") -> 1101
A193: Bredene | B193: DW WVL12 | C193: 8450 | D193: 1172 | E193: Bredene | L193: 0
A194: Oudenburg | B194: DW WVL12 | C194: 8460 | D194: 1172 | E194: Oudenburg | L194: 0
A195: Gistel | B195: DW WVL7 | C195: 8470 | D195: 1101 | E195: =A195 -> Gistel | L195: 0
A196: Ichtegem | B196: DW WVL7 | C196: 8480 | D196: 1101 | E196: Ichtegem | L196: 0
A197: Jabbeke | B197: DW WVL10/TMVW LG 1 | C197: 8490 | D197: 853 | E197: Jabbeke | F197: =SEARCH("/",B197) -> 9 | G197: =LEN(B197) -> 18 | H197: =LEFT(B197,F197-1) -> DW WVL10 | I197: =MID(B197,F197+1,G197-F197) -> TMVW LG 1 | J197: 712 | K197: 853 | L197: 853
A198: Kortrijk | B198: DW WVL3/DW WVL4 | C198: 8500 | D198: 888 | E198: Kortrijk | F198: =SEARCH("/",B198) -> 8 | G198: =LEN(B198) -> 15 | H198: =LEFT(B198,F198-1) -> DW WVL3 | I198: =MID(B198,F198+1,G198-F198) -> DW WVL4 | J198: 888 | K198: 848 | L198: 888
A199: Kuurne | B199: DW WVL2 | C199: 8520 | D199: 820 | E199: Kuurne
A200: Harelbeke | B200: DW WVL2 | C200: 8530 | D200: 820 | E200: Harelbeke
... 120 more rows

Sheet Data (hidden)
A1: artnr | B1: VES Patrone | C1: nl | D1: fr | E1: prijs
A2: 7738330145 | B2: =IF(Talen!$A$1=1,C2,D2) -> VES Kit P4000 Profi | C2: VES Kit P4000 Profi | D2: VES Kit P4000 Profi | E2: 802.67
A3: 7738330146 | B3: =IF(Talen!$A$1=1,C3,D3) -> VES Kit P8000 Profi | C3: VES Kit P8000 Profi | D3: VES Kit P8000 Profi | E3: 1040.29
A4: 7738329421 | B4: =IF(Talen!$A$1=1,C4,D4) -> NFK2 vulinrichting | C4: NFK2 vulinrichting | D4: Dispositif de remplissage NFK2 | E4: 259
A5: 7738330149 | B5: =IF(Talen!$A$1=1,C5,D5) -> Navulverpakking NF8000 | C5: Navulverpakking NF8000 | D5: Pack de recharge Logafix NF8000 | E5: 144.25
A6: 7739453970 | B6: =IF(Talen!$A$1=1,C6,D6) -> Water basisdienst ASA | C6: Water basisdienst ASA | D6: Eau service de base ASA | E6: 797
A7: 7739453971 | B7: =IF(Talen!$A$1=1,C7,D7) -> Water dienst ASA+1 wissel | C7: Water dienst ASA+1 wissel | D7: Eau service ASA+1 chang | E7: 953
A8: 7739453972 | B8: =IF(Talen!$A$1=1,C8,D8) -> Water controle+harswissel | C8: Water controle+harswissel | D8: Eau controle+chang resine | E8: 183
A9: 7739453973 | B9: =IF(Talen!$A$1=1,C9,D9) -> Water waarborg bypassunit | C9: Water waarborg bypassunit | D9: Eau caution unite bypass | E9: 500
A10: 7739453974 | B10: =IF(Talen!$A$1=1,C10,D10) -> Hars | C10: Hars | D10: Resine | E10: 10.3
A11: 7738330148 | B11: =IF(Talen!$A$1=1,C11,D11) -> Navulverpakking NF2000 | C11: Navulverpakking NF2000 | D11: Pack de recharge Logafix NF2000 | E11: 53.61
